[Event "GER-ch Youth-U18 2022"]
[Site "Willingen"]
[Date "2022.06.11"]
[Round "9.2"]
[White "Colbow, Collin"]
[Black "Dahl, Christoph"]
[Result "1-0"]
[ECO "B94"]
[WhiteElo "2360"]
[BlackElo "2368"]
[Annotator "TA"]
[PlyCount "74"]
[EventDate "2022.06.05"]
[EventType "swiss"]
[EventRounds "9"]
[EventCountry "GER"]
[SourceTitle "playchess.com"]
[Source "ChessBase"]
[SourceQuality "1"]
[TimeControl "40/4500+30:900+30"]

{[%evp 11,74,1,33,8,37,23,35,19,27,33,27,27,43,39,66,27,99,60,187,189,193,184,258,260,262,247,314,317,272,219,354,349,545,542,854,848,833,833,743,747,1496,1411,1223,1058,1069,233,236,235,233,221,226,225,231,218,212,0,0,0,341,337,365,358,822,811,771]} 1. e4 {[%emt 0:00:00]} c5 {[%emt 0:00:00]} 2. Nf3 {[%emt 0:00:00]} d6 {[%emt 0:00:00]} 3. d4 {[%emt 0:00:00]} cxd4 {[%emt 0:00:00]} 4. Nxd4 {[%emt 0:00:00]} Nf6 {[%emt 0:00:00]} 5. Nc3 {[%emt 0:00:00]} a6 {[%emt 0:00:00]} 6. Bg5 {[%emt 0:00:00]} Nbd7 {[%emt 0:00:00]} 7. g3 {[%emt 0:00:00] 7.Qe2 is setting a new trend. B94: Sicilian Najdorf: 6 Bg5 Nbd7.} e6 {[%emt 0:00:00]} 8. Qe2 {[%emt 0:00:00]} Qc7 {[%emt 0:00:00]} 9. Bg2 {[%emt 0:00:00] White is slightly better.} h6 {[%emt 0:00:00] [#]} 10. Bxf6 $146 {[%emt 0:00:00]} ({Predecessor:} 10. Bd2 g6 11. O-O-O Bg7 12. Be3 Rb8 13. Bh3 Nb6 14. Ndb5 axb5 15. Nxb5 Qc6 16. Rxd6 {½-½ (30) Schroeder,M (2469)-Zuev,D (2480) ICCF email 2015}) 10... Nxf6 {[%emt 0:00:00]} 11. O-O-O {[%emt 0:00:00]} Be7 {[%emt 0:00:00]} 12. f4 {[%emt 0:00:00]} O-O {[%emt 0:00:00]} 13. Kb1 {[%emt 0:04:41] White is more active.} Bd7 {[%emt 0:03:30]} (13... Rb8 $11) 14. h4 {[%emt 0:07:53]} e5 {[%emt 0:07:33]} (14... h5 $14) 15. Nf5 $18 {[%emt 0:08:59]} Bxf5 {[%emt 0:00:08]} 16. exf5 {[%emt 0:00:18]} exf4 {[%emt 0:00:40]} (16... h5 $142 17. fxe5 dxe5) 17. g4 $1 {[%emt 0:01:46][%cal Bg3g4,Bg4g5][%mdl 32]} (17. gxf4 Rfe8 $14) 17... Rfe8 {[%emt 0:04:23][%cal Od6d5]} 18. g5 {[%emt 0:03:57]} Bf8 {[%emt 0:01:54]} 19. Qf3 {[%emt 0:04:44]} Nd7 {[%emt 0:07:23]} 20. gxh6 {[%emt 0:22:46]} (20. Qxb7 Qxb7 21. Bxb7 Rab8 $16) 20... gxh6 {[%emt 0:01:19]} (20... Re3 {is a better defense.} 21. Qxf4 Rxc3) 21. Rhg1 {[%emt 0:02:54]} (21. Qxf4 Nf6 22. Rhg1 (22. Nd5 Qd8 $18) 22... Kh7 $18) (21. Qxb7 Qxb7 22. Bxb7 Rab8 $16) 21... Bg7 {[%emt 0:01:03]} (21... Kh8 $142 22. Qxf4 (22. Qxb7 Qxb7 23. Bxb7 Rab8 $16) 22... Nf6) 22. Bh1 {[%emt 0:03:59] Intending Qg4 and mate.} Kh7 {[%emt 0:16:37]} 23. Nd5 {[%emt 0:01:49]} Qd8 {[%emt 0:01:53] [#]} 24. Rxg7+ $1 {[%emt 0:14:41][%mdl 512]} Kxg7 {[%emt 0:00:06]} 25. Qg4+ {[%emt 0:00:56]} ({Weaker is} 25. Qxf4 Nf6 $11) 25... Kh8 {[%emt 0:07:15]} 26. Qh5 {[%emt 0:00:44]} Kh7 {[%emt 0:00:20]} 27. Qxf7+ {[%emt 0:05:00]} Kh8 {[%emt 0:00:08]} 28. f6 $2 {[%emt 0:03:43]} (28. Nxf4 {[%cal Rf4g6]} Rg8 29. Ng6+ Rxg6 30. fxg6) 28... Rg8 {[%emt 0:01:41]} 29. Be4 {[%emt 0:00:25][%csl Ge4][%cal Rf7h7]} ({And not} 29. Nxf4 Qxf6 30. Qxf6+ Nxf6 31. Bxb7 Ra7 $15) 29... Nxf6 {[%emt 0:00:22]} 30. Nxf6 $40 {[%emt 0:00:21][%csl Ge4,Gf6][%cal Rf7h7][%mdl 128] White goes for the king.} Rg7 {[%emt 0:00:05] Prevents Qh7+.} 31. Qe6 {[%emt 0:00:14] Chess con chili.} Qe7 {[%emt 0:00:43] [#]} 32. Qxe7 {[%emt 0:00:40]} Rxe7 {[%emt 0:00:04] [#]} 33. Rxd6 $2 {[%emt 0:00:18]} (33. Bf3 $1 $18) 33... Rf8 $11 {[%emt 0:01:21][%cal Of8f6] Hoping for ...Rxf6!} 34. Kc1 {[%emt 0:00:07] Threatens to win with Bf3.} ({Wrong is} 34. Rd7 $2 Rxd7 35. Nxd7 Re8 $19) 34... f3 $2 {[%emt 0:00:33][%mdl 8192]} (34... Rxf6 $1 $11 {and Black stays safe.} 35. Rxf6 Rxe4) 35. Bxf3 $18 {[%emt 0:00:38]} Ref7 {[%emt 0:01:45]} 36. Nd7 {[%emt 0:00:01]} Rd8 {[%emt 0:00:06]} (36... Rxf3 37. Nxf8 Rf1+ 38. Kd2 Rf2+ 39. Kd3 Rf3+ 40. Ke4 Rxf8 41. Rxh6+ Kg7) 37. Ne5 {[%emt 0:00:10]} Rdf8 {Weighted Error Value: White=0.52/Black=0.62} 1-0

[Event "GER-ch Youth-U18 2022"]
[Site "Willingen"]
[Date "2022.06.11"]
[Round "9.3"]
[White "Koelle, Tobias"]
[Black "Pubantz, Jan"]
[Result "1/2-1/2"]
[ECO "D44"]
[WhiteElo "2431"]
[BlackElo "2265"]
[Annotator "TA"]
[PlyCount "128"]
[EventDate "2022.06.05"]
[EventType "swiss"]
[EventRounds "9"]
[EventCountry "GER"]
[SourceTitle "playchess.com"]
[Source "ChessBase"]
[SourceQuality "1"]
[TimeControl "40/4500+30:900+30"]

{[%evp 13,128,0,0,0,0,0,0,0,0,-12,-20,-20,-18,-16,-20,-25,-17,-52,-38,-46,-22,-22,-22,-22,-23,-23,-23,-23,-13,-18,-18,-35,-9,-37,-2,0,0,0,0,0,0,0,0,0,0,-8,-8,-8,-6,-6,-6,-7,0,-6,-6,-8,-6,-8,-6,-8,-8,-8,0,0,0,-14,0,-14,0,-14,-7,-20,0,-14,0,0,0,0,0,0,0,0,0,0,0,0,0,0,0,0,0,0,0,0,0,0,0,0,0,0,0,0,0,0,0,0,0,0,0,0,0,0,0,0,0,0,0]} 1. d4 {[%emt 0:00:00]} d5 {[%emt 0:00:00]} 2. c4 {[%emt 0:00:00]} c6 {[%emt 0:00:00]} 3. Nf3 {[%emt 0:00:00]} Nf6 {[%emt 0:00:00]} 4. Nc3 {[%emt 0:00:00]} e6 {[%emt 0:00:00]} 5. Bg5 {[%emt 0:00:00]} dxc4 {[%emt 0:00:00]} 6. a4 {[%emt 0:00:00]} Bb4 {[%emt 0:00:00] 6...b5 deserves study.} 7. e4 {[%emt 0:00:00]} Qa5 {[%emt 0:00:00] Threatens to win with ...Nxe4.} 8. Bd2 {[%emt 0:00:00] D44: Semi-Slav: Botvinnik System.} c5 {[%emt 0:00:00]} 9. Bxc4 {[%emt 0:00:00]} cxd4 {[%emt 0:00:00]} 10. Nxd4 {[%emt 0:00:08]} O-O {[%emt 0:00:00]} 11. Nb3 {[%emt 0:03:20] Prevents Qc5.} Qc7 {[%emt 0:00:00]} 12. Qe2 {[%emt 0:09:53]} Nc6 {[%emt 0:01:50]} 13. O-O {[%emt 0:08:23]} Ne5 {[%emt 0:13:21]} 14. Nb5 {[%emt 0:04:22]} Qe7 {[%emt 0:02:37] [#]} 15. Bg5 $146 {[%emt 0:06:49]} ({Predecessor:} 15. Rfc1 a6 16. N5d4 Bd7 17. Nf3 Nxf3+ 18. Qxf3 Bxd2 19. Nxd2 Bc6 20. Qe2 Qb4 21. b3 Rfd8 22. Ra2 Rd4 23. f3 Rad8 24. Nf1 Be8 25. Qe3 e5 26. Qc3 Qxc3 {½-½ (26) Ikonnikov,V (2542)-Mihok,O (2498) Germany 2016}) 15... Bd7 {[%emt 0:08:42]} 16. Bd3 {[%emt 0:05:22]} Nxd3 {[%emt 0:16:04]} 17. Qxd3 {[%emt 0:00:02]} Bc6 {[%emt 0:01:11]} 18. Qe3 {[%emt 0:11:16]} h6 {[%emt 0:13:40]} 19. Bxf6 {[%emt 0:00:26]} Qxf6 {[%emt 0:00:07]} 20. Nxa7 {[%emt 0:00:44]} Qxb2 {[%emt 0:06:26][%cal Oa8a7]} 21. Nxc6 {[%emt 0:00:37]} bxc6 {[%emt 0:00:03]} 22. a5 {[%emt 0:06:38]} Rfc8 {[%emt 0:03:28]} 23. Rfc1 {[%emt 0:06:11]} Qe5 {[%emt 0:04:55]} 24. a6 {[%emt 0:02:07] The position is equal.} Qb5 {[%emt 0:03:34]} 25. Nd4 $1 {[%emt 0:12:28]} Qb6 {[%emt 0:02:20] [#] ...Bc5 is the strong threat.} 26. Nc2 {[%emt 0:01:26]} Qxe3 {[%emt 0:04:17]} 27. Nxe3 {[%emt 0:00:01]} c5 {[%emt 0:01:38]} 28. Ra4 {[%emt 0:01:34]} ({Don't play} 28. a7 Rc7 $17) 28... Bd2 {[%emt 0:03:15]} 29. Rc2 {[%emt 0:01:29]} Bxe3 {[%emt 0:00:40]} 30. fxe3 $11 {[%emt 0:00:04][%mdl 4096] Endgame KRR-KRR} Ra7 {[%emt 0:00:30]} 31. Kf2 {[%emt 0:00:15]} Rc6 {[%emt 0:00:22]} 32. Kf3 {[%emt 0:00:28]} Kf8 {[%emt 0:00:58]} 33. Ra5 {[%emt 0:00:34]} c4 {[%emt 0:00:29]} 34. Ra4 {[%emt 0:00:02]} c3 {[%emt 0:00:15]} 35. Ra3 {[%emt 0:00:04]} Raxa6 {[%emt 0:00:46]} 36. Rxa6 {[%emt 0:00:04]} Rxa6 {[%emt 0:00:05]} 37. Rxc3 {[%emt 0:00:02] KR-KR} g6 {[%emt 0:01:09]} 38. Rc7 {[%emt 0:00:18]} Ra5 {[%emt 0:00:14]} 39. h3 {[%emt 0:00:21]} Kg7 {[%emt 0:00:27]} 40. Rb7 {[%emt 0:00:14]} Kf6 {[%emt 0:00:31]} 41. Rc7 {[%emt 0:15:34]} Ra1 {[%emt 0:00:00]} 42. Kf2 {[%emt 0:00:00]} Ra5 {[%emt 0:00:00]} 43. Kf3 {[%emt 0:00:00]} h5 {[%emt 0:00:00]} 44. h4 {[%emt 0:00:00]} Ra1 {[%emt 0:00:00]} 45. Kf2 {[%emt 0:00:00]} Rh1 {[%emt 0:00:00]} 46. g3 {[%emt 0:00:00]} Ra1 {[%emt 0:01:02]} 47. Rb7 {[%emt 0:00:00]} Ra5 {[%emt 0:00:51]} 48. Kf3 {[%emt 0:00:00]} Ra3 {[%emt 0:05:35]} 49. Rc7 {[%emt 0:00:00]} Ra4 {[%emt 0:00:52]} 50. Rb7 {[%emt 0:00:00]} (50. e5+ $5 Kxe5 51. Rxf7 $11) 50... Kg7 {[%emt 0:00:32]} 51. Rc7 {[%emt 0:00:00]} Ra1 {[%emt 0:01:08]} 52. Rb7 {[%emt 0:00:00]} Kh6 {[%emt 0:00:30]} 53. Kf2 {[%emt 0:00:00]} Kg7 {[%emt 0:00:43]} 54. Kf3 {[%emt 0:00:00]} Ra5 {[%emt 0:01:15]} 55. Rc7 $1 {[%emt 0:00:00]} g5 {[%emt 0:00:21]} 56. hxg5 {[%emt 0:00:00]} Rxg5 {[%emt 0:00:03]} 57. Ra7 $1 {[%emt 0:00:00]} Rg6 {[%emt 0:00:37]} 58. Rb7 {[%emt 0:00:00]} (58. Ra5 $5 {[%cal Ra5h5]}) 58... Rf6+ {[%emt 0:00:11]} 59. Kg2 {[%emt 0:00:00]} Kg6 {[%emt 0:00:34]} 60. Rb5 {[%emt 0:00:00]} Kh6 {[%emt 0:00:49]} 61. Ra5 $1 {[%emt 0:00:00]} Rg6 {[%emt 0:00:54] [#] White must now prevent ...h4.} 62. Kf3 {[%emt 0:00:00]} Rg5 {[%emt 0:00:53]} 63. Ra8 {[%emt 0:00:00]} (63. Ra7 $5 {[%cal Ra7f7]}) 63... Kg7 {[%emt 0:00:43]} 64. Ra1 {[%emt 0:00:00]} Kf6 {[%emt 0:00:49] Weighted Error Value: White=0.03 (flawless) /Black=0.03 (flawless)} 1/2-1/2

[Event "GER-ch Youth-U18 2022"]
[Site "Willingen"]
[Date "2022.06.11"]
[Round "9.4"]
[White "Weishaeutel, Moritz"]
[Black "Dobrikov, Marco"]
[Result "1-0"]
[ECO "B62"]
[WhiteElo "2406"]
[BlackElo "2234"]
[Annotator "TA"]
[PlyCount "49"]
[EventDate "2022.06.05"]
[EventType "swiss"]
[EventRounds "9"]
[EventCountry "GER"]
[SourceTitle "playchess.com"]
[Source "ChessBase"]
[SourceQuality "1"]
[TimeControl "40/4500+30:900+30"]

{[%evp 13,49,8,50,48,48,29,39,40,43,14,20,20,21,25,37,13,68,81,162,166,192,190,1568,1567,1547,1555,1516,1529,1481,1467,1467,1467,1366,1279,1187,1112,29993,29994]} 1. e4 {[%emt 0:00:00]} c5 {[%emt 0:00:00]} 2. Nf3 {[%emt 0:00:00]} d6 {[%emt 0:00:00]} 3. d4 {[%emt 0:00:00]} cxd4 {[%emt 0:00:00]} 4. Nxd4 {[%emt 0:00:00]} Nf6 {[%emt 0:00:00]} 5. Nc3 {[%emt 0:00:00]} Nc6 {[%emt 0:00:00]} 6. Bg5 {[%emt 0:00:00]} e6 {[%emt 0:00:00]} 7. Qd3 {[%emt 0:00:00]} a6 {[%emt 0:00:00]} 8. Nxc6 $1 {[%emt 0:00:00][%mdl 4] is more profitable than 8.0-0-0 at the moment. B62: Sicilian: Richter-Rauzer: 6...e6: Unusual White 7th moves.} bxc6 {[%emt 0:00:00]} 9. O-O-O {[%emt 0:00:00][%cal Oe4e5] And now e5! would win.} Be7 {[%emt 0:00:00]} 10. Qg3 {[%emt 0:00:00] Black must now prevent e5. White is slightly better.} Qc7 {[%emt 0:00:00]} 11. Bxf6 {[%emt 0:03:50]} gxf6 {[%emt 0:00:00]} 12. Qg7 {[%emt 0:00:14]} Rf8 {[%emt 0:00:00] [#]} 13. Bc4 $146 {[%emt 0:01:26]} ({Predecessor:} 13. Qxh7 Rb8 14. Rd3 d5 15. exd5 Qf4+ 16. Rd2 f5 17. Nd1 Bg5 18. Ne3 Qe5 19. dxe6 Bxe6 {½-½ (43) Padevsky,N-Ghitescu,T Reggio Emilia 1961}) 13... Rb8 {[%emt 0:02:38]} ({Much less strong is} 13... d5 14. exd5 f5 15. d6 Bxd6 16. Rhe1 $16 (16. Qxh7 Bb7 $14)) 14. Bb3 {[%emt 0:05:45]} Bd7 {[%emt 0:09:31]} (14... c5 $11) 15. Rhe1 $14 {[%emt 0:11:58] White is much more active.} ({Much worse is} 15. Qxh7 c5 $11) 15... c5 {[%emt 0:18:33] [#]} (15... a5 $16) 16. Nd5 $1 $18 {[%emt 0:02:36][%mdl 512]} exd5 {[%emt 0:00:15]} (16... Qd8 17. Re3) 17. exd5 {[%emt 0:00:05][%cal Oe1e7] aiming for Rxe7+!} c4 $2 {[%emt 0:02:11] [#]} (17... Qa5) 18. Rxe7+ $1 {[%emt 0:03:22][%mdl 576] Clearance} Kxe7 {[%emt 0:00:01]} 19. Re1+ {[%emt 0:00:08]} Be6 {[%emt 0:00:01]} 20. Rxe6+ {[%emt 0:03:49]} Kd7 {[%emt 0:00:04]} 21. Ba4+ {[%emt 0:00:06]} Kc8 {[%emt 0:00:13]} 22. Qxf8+ {[%emt 0:00:27]} Kb7 {[%emt 0:00:01]} 23. Re8 {[%emt 0:00:11]} Rxe8 {[%emt 0:00:26]} 24. Qxe8 {[%emt 0:00:07]} Qa5 {[%emt 0:00:04]} 25. Bc6+ {[%emt 0:00:20] Weighted Error Value: White=0.04 (flawless) /Black=1.01} 1-0

[Event "GER-ch Youth-U18 2022"]
[Site "Willingen"]
[Date "2022.06.11"]
[Round "9.5"]
[White "Jeschke, Jan"]
[Black "Zackrisson, Peter"]
[Result "1/2-1/2"]
[ECO "B21"]
[WhiteElo "2130"]
[BlackElo "2015"]
[Annotator "TA"]
[PlyCount "45"]
[EventDate "2022.06.05"]
[EventType "swiss"]
[EventRounds "9"]
[EventCountry "GER"]
[SourceTitle "playchess.com"]
[Source "ChessBase"]
[SourceQuality "1"]
[TimeControl "40/4500+30:900+30"]

{[%evp 13,45,-17,-14,-19,-25,-24,-22,-22,-19,-16,-23,-45,-25,-31,-27,-21,0,0,0,0,0,0,0,0,0,0,0,0,10,0,0,-20,0,0]} 1. e4 {[%emt 0:00:00]} c5 {[%emt 0:00:00]} 2. d4 {[%emt 0:00:00]} cxd4 {[%emt 0:00:00]} 3. c3 {[%emt 0:00:00]} dxc3 {[%emt 0:00:00]} 4. Nxc3 {[%emt 0:00:00]} Nc6 {[%emt 0:00:00]} 5. Nf3 {[%emt 0:00:00]} e6 {[%emt 0:00:00]} 6. Bc4 {[%emt 0:00:00]} Bb4 {[%emt 0:00:00]} 7. O-O {[%emt 0:00:00]} Nge7 $1 {[%emt 0:00:00] 7...Nge7 is better than 7...Bxc3.} 8. Nb5 {[%emt 0:02:27] B21: Sicilian: 2 f4 and Morra Gambit.} d5 {[%emt 0:00:00]} 9. exd5 {[%emt 0:14:11]} exd5 {[%emt 0:00:00]} 10. Bxd5 {[%emt 0:03:30]} Nxd5 {[%emt 0:00:00]} 11. Qxd5 {[%emt 0:00:24]} O-O {[%emt 0:00:00]} 12. Rd1 {[%emt 0:10:16] [#]} Bg4 $146 {[%emt 0:00:00]} ({Predecessor:} 12... Qxd5 13. Rxd5 Be6 14. Rd1 Rfd8 15. Be3 Rxd1+ 16. Rxd1 Bxa2 17. Rd7 a6 18. Nbd4 Nxd4 19. Bxd4 b5 20. h3 Be6 21. Rd6 Bxd6 {0-1 (21) Giovannini,E-Senzacqua,F (2141) ICCF email 2012}) 13. Be3 {[%emt 0:04:47]} Qxd5 {[%emt 0:07:59]} 14. Rxd5 {[%emt 0:00:05]} Bxf3 {[%emt 0:00:42] The position is equal.} 15. gxf3 {[%emt 0:00:03]} a6 {[%emt 0:00:43]} 16. Nd4 {[%emt 0:02:05]} Rac8 {[%emt 0:15:08]} 17. Nxc6 {[%emt 0:01:47]} Rxc6 {[%emt 0:00:20]} 18. a3 {[%emt 0:00:06]} Bd6 {[%emt 0:05:38]} 19. Rad1 {[%emt 0:00:27]} Bc7 {[%emt 0:01:17]} 20. a4 {[%emt 0:10:58]} Bb6 {[%emt 0:03:43]} 21. R1d3 {[%emt 0:01:16]} Bxe3 {[%emt 0:02:32]} 22. Rxe3 {[%emt 0:00:05]} Rc7 {[%emt 0:01:38]} 23. Red3 {[%emt 0:02:50] Weighted Error Value: White=0.04 (flawless) /Black=0.05 (flawless)} 1/2-1/2

[Event "GER-ch Youth-U18 2022"]
[Site "Willingen"]
[Date "2022.06.11"]
[Round "9.6"]
[White "Leonard, Timo"]
[Black "von Mettenheim, Johannes"]
[Result "1-0"]
[ECO "E20"]
[WhiteElo "2018"]
[BlackElo "2176"]
[Annotator "TA"]
[PlyCount "117"]
[EventDate "2022.06.05"]
[EventType "swiss"]
[EventRounds "9"]
[EventCountry "GER"]
[SourceTitle "playchess.com"]
[Source "ChessBase"]
[SourceQuality "1"]
[TimeControl "40/4500+30:900+30"]

{[%evp 11,117,-11,0,0,35,22,39,0,49,48,51,0,0,0,0,0,0,-18,0,0,-8,-55,-39,-35,-36,-74,-51,-86,9,-37,20,-73,-63,-106,-68,-56,-60,-232,-140,-274,-286,-226,-48,-48,-12,-12,-14,-19,9,7,16,0,0,0,0,-50,-35,-40,0,-231,0,-89,-110,-243,-222,-200,-141,-483,-477,-462,-449,-486,167,166,726,719,704,675,603,551,1512,1548,1289,1289,371,358,358,358,343,329,314,311,732,755,686,680,730,501,29978,29979,29979,29980,29980,29981,29986,29987,29990,373]} 1. d4 {[%emt 0:00:00]} Nf6 {[%emt 0:00:00]} 2. c4 {[%emt 0:00:00]} e6 {[%emt 0:00:00]} 3. Nc3 {[%emt 0:00:00]} Bb4 {[%emt 0:00:00]} 4. Bd2 {[%emt 0:00:00]} O-O {[%emt 0:00:00]} 5. Nf3 {[%emt 0:00:00]} d5 {[%emt 0:00:00]} 6. e3 {[%emt 0:00:00]} Nbd7 {[%emt 0:00:00]} 7. Rc1 {[%emt 0:00:00] is now debated instead of 7.Bd3. E51: Nimzo-Indian: Rubinstein: 4...0-0 5 Nf3 d5.} a6 {[%emt 0:00:00]} 8. c5 {[%emt 0:00:00]} c6 {[%emt 0:00:00]} 9. Bd3 {[%emt 0:08:26] [#] White is slightly better.} (9. Qa4 $5 {[%cal Ra4b4]} a5 10. a3 Bxc3 11. Bxc3 $11) 9... Qe7 $146 {[%emt 0:06:01]} (9... e5 $11 {feels stronger.} 10. dxe5 (10. Nxe5 Nxe5 11. dxe5 Ng4 $11) 10... Ng4) ({Predecessor:} 9... Re8 10. a3 Ba5 11. b4 Bc7 12. O-O e5 13. dxe5 Nxe5 14. Nxe5 Bxe5 15. f4 Bxc3 16. Bxc3 Rxe3 {1-0 (45) Goltseva,E (2292)-Pourkashiyan,A (2322) Chess.com INT 2021}) 10. a3 $14 {[%emt 0:12:28]} Ba5 {[%emt 0:00:34]} 11. b4 {[%emt 0:04:31]} (11. O-O $14) 11... Bc7 $11 {[%emt 0:00:26]} 12. O-O {[%emt 0:06:31]} e5 {[%emt 0:01:26]} 13. dxe5 {[%emt 0:01:42]} Ng4 {[%emt 0:06:46][%cal Bf6g4,Bg4e5,Be5c4][%mdl 32]} 14. Bb1 {[%emt 0:06:41]} Ndxe5 {[%emt 0:04:11]} 15. Nxe5 {[%emt 0:04:50]} Nxe5 {[%emt 0:02:39]} 16. Ne2 {[%emt 0:06:21]} (16. e4 $11 d4 17. Na4) 16... Qh4 {[%emt 0:12:47][%cal Oe5f3] ( -> ...Nf3+!)} 17. f4 {[%emt 0:01:41]} Nc4 {[%emt 0:00:50]} ({Much weaker is} 17... Ng4 18. h3 Nf6 19. Bc3 $14) 18. Rxc4 {[%emt 0:04:09]} dxc4 {[%emt 0:00:07]} 19. Nd4 {[%emt 0:00:20]} Be6 {[%emt 0:14:47]} (19... Bd7 $17) 20. Qc2 {[%emt 0:02:11]} (20. Nxe6 $11 {is superior.} fxe6 21. Qe2) 20... Rad8 {[%emt 0:02:54]} (20... Rfe8 $15) 21. Bc3 {[%emt 0:02:03]} (21. Nxe6 $11 {keeps the balance.} fxe6 22. Be1) 21... Rfe8 $17 {[%emt 0:01:24]} 22. Rf3 {[%emt 0:01:39]} Bg4 {[%emt 0:05:45]} 23. Rg3 {[%emt 0:05:50]} g6 {[%emt 0:03:53]} 24. Nf3 $2 {[%emt 0:03:54]} (24. Qf2 $15 Qh5 25. Bc2) 24... Qh5 {[%emt 0:02:29]} 25. h3 {[%emt 0:08:57]} (25. Qc1 $17) 25... Bxf3 $19 {[%emt 0:06:46]} 26. Rxf3 {[%emt 0:00:03]} Qd5 $2 {[%emt 0:02:21]} (26... Rd3 $19 27. Bd4 Re4) 27. Bd4 $15 {[%emt 0:00:20]} Rd7 {[%emt 0:02:57]} (27... Qe6 $5 {[%cal Rd8d4]} 28. f5 gxf5 29. Rxf5 Rxd4 $1 30. exd4 Kf8 $11) 28. Ba2 {[%emt 0:00:27]} Qe4 {[%emt 0:01:21]} 29. Qxc4 {[%emt 0:00:11]} Bd8 {[%emt 0:00:12]} 30. Qc3 {[%emt 0:01:52]} Be7 {[%emt 0:01:15]} 31. f5 {[%emt 0:01:18]} Bg5 {[%emt 0:00:31]} 32. fxg6 {[%emt 0:01:27] The board is on fire.} hxg6 {[%emt 0:00:10]} 33. Qb3 {[%emt 0:01:08]} ({Better is} 33. Bb3 $11) 33... Ree7 {[%emt 0:01:18]} 34. Qc3 {[%emt 0:01:14]} Kh7 {[%emt 0:02:13][%cal Od7d4]} (34... Rxd4 $5 35. exd4 Be3+ 36. Kh1 Bxd4 $15) 35. Kh2 $2 {[%emt 0:00:25] [#]} (35. h4 $11 {and White is okay.} Bh6 36. h5) 35... Bh6 $2 {[%emt 0:00:47]} (35... Bxe3 $1 $19 {[%mdl 512]} 36. Qxe3 (36. Bxe3 $2 Rd3 $19) 36... Qxd4 37. Qxd4 Rxd4 38. Bxf7 a5 39. bxa5 Ra4) 36. Kh1 {[%emt 0:01:26]} (36. Bb3 $11) 36... f5 $1 $17 {[%emt 0:01:25]} 37. Qb3 {[%emt 0:00:22]} (37. Bc4 $17) 37... Re8 $1 $19 {[%emt 0:00:08]} 38. Bb1 {[%emt 0:00:33]} Qd5 {[%emt 0:00:42]} 39. Qc2 {[%emt 0:00:28][%mdl 8192]} (39. Qb2 $17 {is tougher.}) 39... Bg7 $1 {[%emt 0:01:15]} 40. Rf4 {[%emt 0:01:29]} Bxd4 {[%emt 0:01:21]} 41. Rxd4 {[%emt 0:00:00]} Qf7 {[%emt 0:00:00][%mdl 8192] [#]} (41... Qe6 $19 {and all is fine. White must now prevent ...Rxd4.} 42. Rxd7+ Qxd7) 42. Rh4+ $18 {[%emt 0:00:00][%mdl 1024] White has strong compensation.} Kg7 $2 {[%emt 0:07:08]} (42... Kg8) 43. Qc3+ {[%emt 0:00:00]} Kf8 {[%emt 0:00:40]} 44. Rh8+ {[%emt 0:10:18]} Ke7 {[%emt 0:00:08] [#]} 45. Ba2 $1 {[%emt 0:02:06][%mdl 512]} Rd5 {[%emt 0:01:47] Prevents Qe5+.} (45... Rd1+ 46. Kh2) 46. Bxd5 {[%emt 0:00:07]} cxd5 {[%emt 0:02:02][%mdl 4096] Endgame KQR-KQR} 47. Qe5+ {[%emt 0:00:28]} Kd7 {[%emt 0:00:05]} 48. Rxe8 {[%emt 0:00:43]} Qxe8 {[%emt 0:00:05]} 49. Qxd5+ {[%emt 0:00:55] KQ-KQ} Kc8 {[%emt 0:00:44]} 50. Qb3 {[%emt 0:00:35]} Kb8 {[%emt 0:01:50]} 51. a4 {[%emt 0:00:15][%cal Ba3a4,Ba4b5,Bb5c6][%mdl 32]} g5 $2 {[%emt 0:00:47]} (51... Qh8 52. Kg1 Qc8) 52. b5 {[%emt 0:01:43]} axb5 {[%emt 0:00:14]} 53. axb5 {[%emt 0:00:08] Threatens to win with b6.} g4 {[%emt 0:06:43]} 54. Qd3 {[%emt 0:00:36]} Qf7 {[%emt 0:01:20]} (54... gxh3 $18 55. gxh3 Qh5) 55. Qd8+ {[%emt 0:00:28] White mates.} Ka7 {[%emt 0:00:05]} 56. Qb6+ {[%emt 0:00:15]} Ka8 {[%emt 0:00:06]} 57. c6 {[%emt 0:00:21]} bxc6 {[%emt 0:00:07]} 58. bxc6 {[%emt 0:00:17]} gxh3 {[%emt 0:00:18]} 59. Qd8+ $2 {[%emt 0:00:36] Weighted Error Value: White=0.49/Black=0.55} (59. c7 {mates} Qxc7 60. Qxc7 hxg2+ 61. Kg1 f4 62. Qc6+ Ka7 63. exf4 Kb8 64. f5) 1-0